[Event "26th Abu Dhabi Master 2019"]
[Site "Abu Dhabi"]
[Date "2019.08.04"]
[Round "4.69"]
[White "Bartel, Marta"]
[Black "Haase, Pavel"]
[Result "1-0"]
[ECO "A80"]
[WhiteElo "2260"]
[BlackElo "2160"]
[Annotator "NA"]
[PlyCount "125"]
[EventDate "2019.08.02"]
[EventType "swiss"]
[EventCountry "UAE"]
[SourceTitle "playchess.com"]
[Source "ChessBase"]
[SourceQuality "1"]
[TimeControl "5400+30"]

1. d4 {[%emt 0:00:00]} f5 {[%emt 0:00:00]} 2. Bg5 {[%emt 0:00:00]} Nf6 {[%emt 0:00:30]} 3. Bxf6 {[%emt 0:00:10]} exf6 {[%emt 0:00:06]} 4. e3 {[%emt 0:00:05]} d5 {[%emt 0:00:20]} 5. Bd3 {[%emt 0:00:08]} Be6 {[%emt 0:02:07]} 6. Qf3 {[%emt 0:00:08]} g6 {[%emt 0:02:13]} 7. h4 {[%emt 0:00:28]} h5 {[%emt 0:03:13]} 8. Ne2 {[%emt 0:01:14]} c6 {[%emt 0:00:54]} 9. Nd2 {[%emt 0:01:14]} Qa5 {[%emt 0:05:03]} 10. Nf4 {[%emt 0:05:26]} Bf7 {[%emt 0:00:35]} 11. Qe2 {[%emt 0:01:50]} b5 {[%emt 0:10:36]} 12. c3 {[%emt 0:06:31]} Bd6 {[%emt 0:03:09]} 13. g3 {[%emt 0:03:36]} Nd7 {[%emt 0:01:48]} 14. O-O {[%emt 0:04:47]} O-O {[%emt 0:03:00]} 15. Rfc1 {[%emt 0:06:22]} Rab8 {[%emt 0:08:30]} 16. b3 {[%emt 0:01:52]} Bxf4 {[%emt 0:28:39]} 17. gxf4 {[%emt 0:01:13]} Rfe8 {[%emt 0:01:12]} 18. Kh1 {[%emt 0:07:35]} Kh8 {[%emt 0:01:54]} 19. Rc2 {[%emt 0:03:20]} Qa3 {[%emt 0:04:16]} 20. Rg1 {[%emt 0:02:21]} Re7 {[%emt 0:03:30]} 21. Nf1 a6 22. Nd2 {[%emt 0:19:47]} a5 {[%emt 0:07:48]} 23. Kh2 {[%emt 0:05:05]} Qd6 {[%emt 0:01:17]} 24. Nf3 {[%emt 0:00:48]} Nb6 {[%emt 0:01:03]} 25. Nd2 {[%emt 0:03:16]} Nd7 {[%emt 0:00:10]} 26. Qf1 {[%emt 0:00:43]} Nf8 {[%emt 0:02:26]} 27. Rg3 {[%emt 0:06:24]} Ne6 {[%emt 0:00:27]} 28. Rc1 {[%emt 0:00:49]} Rg8 {[%emt 0:02:08]} 29. Qh3 {[%emt 0:02:10]} Nxf4 {[%emt 0:03:08]} 30. exf4 {[%emt 0:00:57]} Qxf4 {[%emt 0:00:03]} 31. Rd1 {[%emt 0:00:15]} Qxf2+ {[%emt 0:00:12]} 32. Qg2 {[%emt 0:00:01]} Qf4 {[%emt 0:00:13]} 33. Nf3 {[%emt 0:10:50]} g5 {[%emt 0:00:59]} 34. Kh1 {[%emt 0:00:21]} g4 {[%emt 0:00:59]} 35. Ng1 {[%emt 0:01:33]} Rge8 {[%emt 0:02:02]} 36. Rf1 {[%emt 0:00:36]} Qh6 {[%emt 0:00:12]} 37. Bxf5 {[%emt 0:00:08]} Re1 {[%emt 0:00:45]} 38. Qf2 {[%emt 0:01:44]} R1e3 {[%emt 0:01:47]} 39. Rxe3 {[%emt 0:02:33]} Rxe3 {[%emt 0:00:13]} 40. Bd7 {[%emt 0:01:36]} Kg7 {[%emt 0:00:45]} 41. Bxc6 {[%emt 0:00:53]} Rxc3 {[%emt 0:00:11]} 42. Bxb5 {[%emt 0:00:23]} g3 {[%emt 0:00:21]} 43. Qf4 {[%emt 0:01:00]} g2+ {[%emt 0:01:28]} 44. Kxg2 {[%emt 0:00:07]} Qg6+ {[%emt 0:00:06]} 45. Kh1 {[%emt 0:00:19]} Rg3 {[%emt 0:00:48]} 46. Be2 {[%emt 0:00:21]} Be6 {[%emt 0:00:09]} 47. Bxh5 {[%emt 0:00:35]} Qe4+ {[%emt 0:01:12]} 48. Qxe4 {[%emt 0:00:09]} dxe4 {[%emt 0:00:05]} 49. Kh2 {[%emt 0:00:29]} Rc3 {[%emt 0:00:20]} 50. Re1 {[%emt 0:01:07]} f5 {[%emt 0:00:15]} 51. Nh3 {[%emt 0:00:12]} Bf7 {[%emt 0:01:29]} 52. Bxf7 {[%emt 0:01:01]} Rc2+ {[%emt 0:00:08]} 53. Kg3 {[%emt 0:00:12]} Kxf7 {[%emt 0:00:02]} 54. Nf4 {[%emt 0:00:40]} Rxa2 {[%emt 0:00:05]} 55. h5 {[%emt 0:00:48]} Ra3 {[%emt 0:00:14]} 56. h6 {[%emt 0:00:54]} Rxb3+ {[%emt 0:00:05]} 57. Kh4 {[%emt 0:00:07]} Kf6 {[%emt 0:00:51]} 58. Rc1 {[%emt 0:00:22]} e3 {[%emt 0:01:32]} 59. Rc6+ {[%emt 0:00:07]} Kf7 {[%emt 0:00:10]} 60. Kg5 {[%emt 0:00:34]} Rb5 {[%emt 0:00:39]} 61. Rc7+ {[%emt 0:00:17]} Kg8 {[%emt 0:00:22]} 62. h7+ {[%emt 0:00:05]} Kh8 {[%emt 0:00:04]} 63. Ng6# 1-0

[Event "26th Abu Dhabi Master 2019"]
[Site "Abu Dhabi"]
[Date "2019.08.04"]
[Round "4.70"]
[White "Aakanksha Hagawane"]
[Black "Wang, Shanshan"]
[Result "1/2-1/2"]
[ECO "B52"]
[WhiteElo "2246"]
[BlackElo "2122"]
[Annotator "NA"]
[PlyCount "89"]
[EventDate "2019.08.02"]
[EventType "swiss"]
[EventCountry "UAE"]
[SourceTitle "playchess.com"]
[Source "ChessBase"]
[SourceQuality "1"]
[TimeControl "5400+30"]

1. e4 {[%emt 0:00:00]} c5 {[%emt 0:04:45]} 2. Nf3 {[%emt 0:00:00]} d6 {[%emt 0:00:05]} 3. Bb5+ {[%emt 0:00:07]} Bd7 {[%emt 0:00:16]} 4. Bxd7+ {[%emt 0:00:04]} Qxd7 {[%emt 0:00:13]} 5. c4 {[%emt 0:00:08]} Nc6 {[%emt 0:00:10]} 6. d4 {[%emt 0:00:07]} cxd4 {[%emt 0:00:11]} 7. Nxd4 {[%emt 0:00:03]} g6 {[%emt 0:00:36]} 8. b3 {[%emt 0:00:20]} Bg7 {[%emt 0:00:38]} 9. Bb2 {[%emt 0:00:12]} Nf6 {[%emt 0:00:36]} 10. Nc3 {[%emt 0:00:35]} Qg4 {[%emt 0:05:36]} 11. Qxg4 {[%emt 0:04:06]} Nxg4 {[%emt 0:00:06]} 12. Nde2 {[%emt 0:02:30]} Nb4 {[%emt 0:07:53]} 13. O-O {[%emt 0:00:50]} h5 {[%emt 0:03:46]} 14. Rfd1 {[%emt 0:05:23]} Rc8 {[%emt 0:09:02]} 15. Rab1 {[%emt 0:09:50]} Nc6 {[%emt 0:15:19]} 16. h3 {[%emt 0:01:53]} Nh6 {[%emt 0:01:49]} 17. Ba3 {[%emt 0:01:18]} b6 {[%emt 0:06:16]} 18. Nd5 {[%emt 0:02:59]} Na5 {[%emt 0:04:52]} 19. Nd4 {[%emt 0:03:31]} Bxd4 {[%emt 0:02:25]} 20. Rxd4 {[%emt 0:00:01]} g5 {[%emt 0:03:40]} 21. Rbd1 {[%emt 0:07:41]} f6 {[%emt 0:04:20]} 22. g3 {[%emt 0:01:19]} Nc6 {[%emt 0:05:49]} 23. R4d2 {[%emt 0:05:57]} Ne5 {[%emt 0:00:08]} 24. Nxe7 {[%emt 0:19:46]} Kxe7 {[%emt 0:00:30]} 25. Rxd6 Kf7 26. f4 {[%emt 0:01:00]} gxf4 {[%emt 0:03:56]} 27. gxf4 {[%emt 0:00:02]} Nc6 {[%emt 0:03:18]} 28. R1d5 {[%emt 0:02:07]} Ng8 {[%emt 0:02:44]} 29. Rd7+ {[%emt 0:01:53]} Nge7 {[%emt 0:01:18]} 30. Bxe7 {[%emt 0:04:46]} Nxe7 {[%emt 0:00:02]} 31. Rxa7 {[%emt 0:00:01]} Ra8 {[%emt 0:00:21]} 32. Rdd7 {[%emt 0:20:51]} Rxa7 {[%emt 0:00:06]} 33. Rxa7 {[%emt 0:00:02]} Rd8 {[%emt 0:00:24]} 34. Kf2 {[%emt 0:00:02]} Rd3 {[%emt 0:00:25]} 35. Kg2 {[%emt 0:02:15]} Re3 {[%emt 0:00:17]} 36. e5 {[%emt 0:01:46]} fxe5 {[%emt 0:00:08]} 37. fxe5 {[%emt 0:00:01]} Rxe5 {[%emt 0:00:06]} 38. Rb7 {[%emt 0:00:10]} Re6 {[%emt 0:01:59]} 39. a4 {[%emt 0:00:12]} Kf6 {[%emt 0:00:37]} 40. b4 {[%emt 0:00:56]} Kf5 {[%emt 0:03:16]} 41. a5 {[%emt 0:02:24]} bxa5 {[%emt 0:00:07]} 42. Rb5+ {[%emt 0:00:01]} Kf4 {[%emt 0:04:04]} 43. Rxa5 {[%emt 0:00:03]} Re2+ {[%emt 0:00:41]} 44. Kf1 {[%emt 0:00:23]} Rb2 {[%emt 0:00:11]} 45. Rxh5 {Ke5} 1/2-1/2

[Event "26th Abu Dhabi Master 2019"]
[Site "Abu Dhabi"]
[Date "2019.08.04"]
[Round "4.71"]
[White "Pujari, Rucha"]
[Black "Davainis, Marius"]
[Result "1-0"]
[ECO "A60"]
[WhiteElo "2268"]
[BlackElo "2105"]
[Annotator "NA"]
[PlyCount "43"]
[EventDate "2019.08.02"]
[EventType "swiss"]
[EventCountry "UAE"]
[SourceTitle "playchess.com"]
[Source "ChessBase"]
[SourceQuality "1"]
[TimeControl "5400+30"]

1. d4 {[%emt 0:04:15]} Nf6 {[%emt 0:00:00]} 2. c4 {[%emt 0:00:22]} c5 {[%emt 0:00:00]} 3. d5 {[%emt 0:00:11]} e6 {[%emt 0:00:00]} 4. Nc3 {[%emt 0:00:37]} exd5 {[%emt 0:00:00]} 5. cxd5 {[%emt 0:00:03]} Bd6 {[%emt 0:00:28]} 6. g3 {[%emt 0:02:49]} O-O {[%emt 0:00:12]} 7. Bg2 {[%emt 0:00:03]} Re8 {[%emt 0:01:08]} 8. Nf3 {[%emt 0:00:44]} Bc7 {[%emt 0:01:27]} 9. d6 {[%emt 0:02:56]} Ba5 {[%emt 0:00:02]} 10. O-O {[%emt 0:00:13]} Bxc3 {[%emt 0:03:52]} 11. bxc3 {[%emt 0:00:06]} Qb6 {[%emt 0:00:30]} 12. Nh4 {[%emt 0:03:07]} g6 {[%emt 0:12:59]} 13. Bf4 {[%emt 0:16:56]} Qb2 {[%emt 0:20:51]} 14. Be3 {[%emt 0:04:59]} Qxc3 {[%emt 0:17:38]} 15. Rc1 {[%emt 0:00:37]} Qe5 {[%emt 0:00:19]} 16. Rxc5 {[%emt 0:08:52]} Qe6 {[%emt 0:00:15]} 17. Nf3 {[%emt 0:16:01]} Nc6 {[%emt 0:03:41]} 18. Ng5 {[%emt 0:02:14]} Qg4 19. Qa1 Nh5 {[%emt 0:28:09]} 20. Bf3 {[%emt 0:10:25]} Qb4 {[%emt 0:00:02]} 21. a3 {[%emt 0:03:21]} Qb3 {[%emt 0:00:46]} 22. Bd5 {[%emt 0:01:16]} 1-0

[Event "26th Abu Dhabi Master 2019"]
[Site "Abu Dhabi"]
[Date "2019.08.04"]
[Round "4.72"]
[White "Srihari L"]
[Black "Priyanka Nutakki"]
[Result "0-1"]
[ECO "C11"]
[WhiteElo "2101"]
[BlackElo "2293"]
[Annotator "NA"]
[PlyCount "86"]
[EventDate "2019.08.02"]
[EventType "swiss"]
[EventCountry "UAE"]
[SourceTitle "playchess.com"]
[Source "ChessBase"]
[SourceQuality "1"]
[TimeControl "5400+30"]

1. e4 {[%emt 0:00:00]} e6 {[%emt 0:00:00]} 2. d4 {[%emt 0:00:00]} d5 {[%emt 0:00:00]} 3. Nc3 {[%emt 0:00:00]} Nf6 {[%emt 0:00:00]} 4. e5 {[%emt 0:00:00]} Nfd7 {[%emt 0:00:00]} 5. Nce2 {[%emt 0:00:00]} c5 {[%emt 0:00:02]} 6. c3 {[%emt 0:00:00]} Nc6 {[%emt 0:00:06]} 7. f4 {[%emt 0:01:06]} Qb6 {[%emt 0:07:14]} 8. Nf3 {[%emt 0:00:10]} Be7 {[%emt 0:00:06]} 9. a3 {[%emt 0:06:11]} O-O {[%emt 0:16:54]} 10. b4 {[%emt 0:08:55]} cxd4 {[%emt 0:00:12]} 11. cxd4 {[%emt 0:05:13]} f6 {[%emt 0:03:55]} 12. Qd3 {[%emt 0:06:17]} Qc7 {[%emt 0:05:12]} 13. Nc3 {[%emt 0:04:10]} Nb6 {[%emt 0:02:43]} 14. Be2 {[%emt 0:04:01]} Bd7 {[%emt 0:02:02]} 15. O-O {[%emt 0:00:57]} Rac8 {[%emt 0:00:46]} 16. Bd2 {[%emt 0:03:09]} Nc4 {[%emt 0:03:44]} 17. Be1 {[%emt 0:04:54]} fxe5 {[%emt 0:02:54]} 18. Nxe5 {[%emt 0:00:32]} N6xe5 {[%emt 0:01:24]} 19. dxe5 {[%emt 0:00:47]} Be8 {[%emt 0:13:34]} 20. Bg4 {[%emt 0:01:02]} Kh8 {[%emt 0:00:17]} 21. Ne2 {[%emt 0:14:05]} Bf7 22. Bf2 Bg8 {[%emt 0:25:31]} 23. Bd4 {[%emt 0:21:14]} a5 {[%emt 0:01:03]} 24. b5 {[%emt 0:03:43]} Bc5 {[%emt 0:01:25]} 25. Kh1 {[%emt 0:00:21]} a4 {[%emt 0:02:55]} 26. Rac1 {[%emt 0:04:34]} Qe7 {[%emt 0:01:08]} 27. Bxc5 {[%emt 0:01:13]} Qxc5 {[%emt 0:01:42]} 28. Nd4 {[%emt 0:00:29]} Qe7 {[%emt 0:01:27]} 29. Ra1 {[%emt 0:04:01]} Rc5 {[%emt 0:00:44]} 30. Rfc1 {[%emt 0:03:36]} Rxf4 {[%emt 0:00:22]} 31. Bh3 {[%emt 0:00:42]} Nxe5 {[%emt 0:00:27]} 32. Qd2 {[%emt 0:01:14]} Rxc1+ {[%emt 0:00:18]} 33. Rxc1 {[%emt 0:00:05]} Qf6 {[%emt 0:00:02]} 34. g3 {[%emt 0:02:21]} Rf2 {[%emt 0:01:01]} 35. Qc3 {[%emt 0:01:45]} Qh6 {[%emt 0:00:58]} 36. Bg2 {[%emt 0:00:38]} Ng4 {[%emt 0:00:06]} 37. h4 {[%emt 0:00:23]} Qf6 {[%emt 0:02:47]} 38. Nf3 {[%emt 0:00:29]} e5 {[%emt 0:00:45]} 39. Qc8 {[%emt 0:00:33]} Ne3 {[%emt 0:00:50]} 40. Qe8 {[%emt 0:00:34]} Rxf3 {[%emt 0:01:28]} 41. Rc8 {[%emt 0:00:02]} Rf1+ {[%emt 0:00:34]} 42. Kh2 {[%emt 0:00:40]} Qf7 {[%emt 0:00:28]} 43. Qxe5 {[%emt 0:00:35]} Ng4+ {[%emt 0:00:03]} 0-1

[Event "26th Abu Dhabi Master 2019"]
[Site "Abu Dhabi"]
[Date "2019.08.04"]
[Round "4.73"]
[White "Krzywda, Andrzej"]
[Black "Ayyad, Husain"]
[Result "0-1"]
[ECO "C54"]
[WhiteElo "2190"]
[BlackElo "2231"]
[Annotator "NA"]
[PlyCount "94"]
[EventDate "2019.08.02"]
[EventType "swiss"]
[EventCountry "UAE"]
[SourceTitle "playchess.com"]
[Source "ChessBase"]
[SourceQuality "1"]
[TimeControl "5400+30"]

1. e4 e5 2. Nf3 Nc6 3. d4 exd4 4. Bc4 Bc5 5. c3 Nf6 6. e5 d5 7. Bb5 Ne4 8. cxd4 Bb6 9. Nc3 O-O 10. Bxc6 bxc6 11. O-O f6 12. Be3 Bg4 13. Ne2 Bxf3 14. gxf3 Ng5 15. Bxg5 fxg5 16. Rc1 Qe8 17. Qd3 Qh5 18. Kg2 Rf7 19. Rxc6 Raf8 20. Rc3 Rxf3 21. Qxf3 Rxf3 22. Rxf3 Qg4+ 23. Ng3 Bxd4 24. Re1 Qe6 25. h3 h6 26. b4 Kh7 27. Re2 Kg6 28. a4 h5 29. Rd3 h4 30. Nf1 Ba1 31. Nh2 Kf7 32. Ng4 d4 33. Kh2 Ke8 34. b5 Qc4 35. Red2 Bc3 36. Rd1 Qxa4 37. Rb1 Qc2 38. Rdd1 Qe4 39. Rbc1 Qf3 40. Rb1 Bd2 41. Kg1 Qxh3 42. Rxd2 Qxg4+ 43. Kf1 h3 44. f3 Qxf3+ 45. Kg1 Qe3+ 46. Rf2 h2+ 47. Kg2 Qe4+ 0-1

[Event "26th Abu Dhabi Master 2019"]
[Site "Abu Dhabi"]
[Date "2019.08.04"]
[Round "4.74"]
[White "Mohamed, Faisal"]
[Black "Srihari L R"]
[Result "0-1"]
[ECO "A04"]
[WhiteElo "2150"]
[BlackElo "2227"]
[Annotator "NA"]
[PlyCount "28"]
[EventDate "2019.08.02"]
[EventType "swiss"]
[EventCountry "UAE"]
[SourceTitle "playchess.com"]
[Source "ChessBase"]
[SourceQuality "1"]
[TimeControl "5400+30"]

1. Nf3 {[%emt 0:02:09]} d6 {[%emt 0:00:13]} 2. d4 {[%emt 0:00:20]} g6 {[%emt 0:03:16]} 3. c4 {[%emt 0:00:34]} Bg7 {[%emt 0:00:15]} 4. g3 {[%emt 0:00:43]} c5 {[%emt 0:00:20]} 5. Bg2 {[%emt 0:02:46]} Nc6 {[%emt 0:00:48]} 6. dxc5 {[%emt 0:01:06]} Qa5+ {[%emt 0:00:27]} 7. Nbd2 {[%emt 0:01:22]} Qxc5 {[%emt 0:01:10]} 8. O-O {[%emt 0:01:28]} Nf6 {[%emt 0:01:19]} 9. a3 {[%emt 0:11:03]} Qh5 {[%emt 0:07:51]} 10. Nb3 {[%emt 0:09:31]} Bh3 {[%emt 0:05:28]} 11. Re1 {[%emt 0:10:56]} O-O {[%emt 0:02:06]} 12. Nbd4 {[%emt 0:22:23]} Ne5 {[%emt 0:14:17]} 13. Qb3 {[%emt 0:00:42]} Neg4 {[%emt 0:02:16]} 14. e4 {[%emt 0:03:33]} Nxf2 {[%emt 0:13:03]} 0-1

[Event "26th Abu Dhabi Master 2019"]
[Site "Abu Dhabi"]
[Date "2019.08.04"]
[Round "4.75"]
[White "Thrish Karthik"]
[Black "Soham Datar"]
[Result "1/2-1/2"]
[ECO "A48"]
[WhiteElo "2075"]
[BlackElo "2129"]
[Annotator "NA"]
[PlyCount "40"]
[EventDate "2019.08.02"]
[EventType "swiss"]
[EventCountry "UAE"]
[SourceTitle "playchess.com"]
[Source "ChessBase"]
[SourceQuality "1"]
[TimeControl "5400+30"]

1. d4 Nf6 2. Nf3 g6 3. c4 c5 4. Nc3 cxd4 5. Nxd4 Bg7 6. e4 d6 7. Be2 Nc6 8. Be3 Bd7 9. O-O O-O 10. Nc2 Rc8 11. f3 Be6 12. Na3 Nd7 13. Qd2 Qa5 14. Rac1 a6 15. Rfd1 Rfe8 16. Bf1 Qb4 17. Rc2 f5 18. exf5 Bxf5 19. Bd3 Bxd3 20. Qxd3 Nce5 1/2-1/2

[Event "26th Abu Dhabi Master 2019"]
[Site "Abu Dhabi"]
[Date "2019.08.05"]
[Round "5.16"]
[White "Sindarov, Javokhir"]
[Black "Vaibhav, Suri"]
[Result "1/2-1/2"]
[ECO "B54"]
[WhiteElo "2479"]
[BlackElo "2591"]
[Annotator "ChessBase"]
[PlyCount "35"]
[EventDate "2019.08.02"]
[EventType "swiss"]
[EventCountry "UAE"]
[SourceTitle "playchess.com"]
[Source "ChessBase"]
[SourceQuality "1"]
[TimeControl "5400+30"]

1. e4 c5 2. Nf3 d6 3. d4 cxd4 4. Nxd4 Nf6 5. f3 e5 6. Nb3 d5 7. Bg5 Be6 8. Bxf6 gxf6 9. exd5 Qxd5 10. Qxd5 Bxd5 11. Nc3 Be6 12. O-O-O Nc6 13. Bb5 Rc8 14. Nd5 f5 15. Nf6+ Ke7 16. Nd5+ Ke8 17. Nf6+ Ke7 18. Nd5+ 1/2-1/2

[Event "26th Abu Dhabi Master 2019"]
[Site "Abu Dhabi"]
[Date "2019.08.05"]
[Round "5.26"]
[White "Senthil Maran K"]
[Black "Kiriakov, Petr"]
[Result "1/2-1/2"]
[ECO "A40"]
[WhiteElo "2222"]
[BlackElo "2516"]
[Annotator "ChessBase"]
[PlyCount "39"]
[EventDate "2019.08.02"]
[EventType "swiss"]
[EventCountry "UAE"]
[SourceTitle "playchess.com"]
[Source "ChessBase"]
[SourceQuality "1"]
[TimeControl "5400+30"]

1. d4 {[%emt 0:05:00]} e6 {[%emt 0:00:00]} 2. g3 {[%emt 0:00:08]} c5 {[%emt 0:02:53]} 3. Nf3 {[%emt 0:05:49]} Nc6 {[%emt 0:02:54]} 4. Bg2 {[%emt 0:01:40]} cxd4 {[%emt 0:05:28]} 5. Nxd4 {[%emt 0:02:13]} Qb6 {[%emt 0:00:12]} 6. Nb3 {[%emt 0:01:51]} d5 {[%emt 0:01:20]} 7. O-O {[%emt 0:00:31]} Nf6 {[%emt 0:00:32]} 8. Be3 {[%emt 0:11:19]} Qc7 {[%emt 0:11:41]} 9. Nc3 {[%emt 0:00:50]} Be7 {[%emt 0:03:23]} 10. Nb5 {[%emt 0:06:10]} Qd8 {[%emt 0:01:34]} 11. c4 {[%emt 0:02:15]} O-O {[%emt 0:05:16]} 12. Rc1 {[%emt 0:10:17]} a6 {[%emt 0:03:44]} 13. Nc3 {[%emt 0:02:31]} dxc4 {[%emt 0:01:19]} 14. Qxd8 {[%emt 0:03:50]} Rxd8 {[%emt 0:05:04]} 15. Nd2 {[%emt 0:00:37]} Ng4 {[%emt 0:01:34]} 16. Nxc4 {[%emt 0:03:22]} Nxe3 {[%emt 0:00:06]} 17. Nxe3 {[%emt 0:00:52]} Bd7 {[%emt 0:00:22]} 18. Nc4 {[%emt 0:01:01]} Be8 {[%emt 0:01:05]} 19. Nb6 {[%emt 0:07:51]} Rab8 {[%emt 0:00:31]} 20. e3 {[%emt 0:04:27]} 1/2-1/2

[Event "26th Abu Dhabi Master 2019"]
[Site "Abu Dhabi"]
[Date "2019.08.05"]
[Round "5.27"]
[White "Pranav, V."]
[Black "Kuybokarov, Temur"]
[Result "0-1"]
[ECO "B51"]
[WhiteElo "2316"]
[BlackElo "2511"]
[Annotator "RC"]
[PlyCount "138"]
[EventDate "2019.08.02"]
[EventType "swiss"]
[EventCountry "UAE"]
[TimeControl "5400+30"]

1. e4 {[%emt 0:00:00]} c5 {[%emt 0:00:17]} 2. Nf3 {[%emt 0:00:00]} d6 {[%emt 0:00:11]} 3. Bb5+ {[%emt 0:01:02]} Nd7 {[%emt 0:00:26]} 4. d4 {[%emt 0:00:20]} cxd4 {[%emt 0:00:10]} 5. Qxd4 {[%emt 0:00:06]} a6 {[%emt 0:00:22]} 6. Be2 {[%emt 0:01:14]} Ngf6 {[%emt 0:00:31]} 7. c4 {[%emt 0:00:17]} g6 {[%emt 0:00:46]} 8. Nc3 {[%emt 0:00:27]} Bg7 {[%emt 0:00:12]} 9. O-O {[%emt 0:00:18]} O-O {[%emt 0:00:16]} 10. h3 {[%emt 0:00:17]} b6 {[%emt 0:03:50]} 11. Qe3 {[%emt 0:04:50]} Bb7 {[%emt 0:01:15]} 12. Rd1 {[%emt 0:10:18]} Qc7 {[%emt 0:09:39]} 13. Rb1 {[%emt 0:04:35]} e6 {[%emt 0:10:41]} 14. b3 {[%emt 0:09:21]} Qc5 {[%emt 0:20:03]} 15. Qd3 {[%emt 0:08:24]} Qc6 {[%emt 0:05:15]} 16. Qxd6 {[%emt 0:08:07]} Qxd6 {[%emt 0:07:27]} 17. Rxd6 {[%emt 0:00:09]} Nxe4 {[%emt 0:02:54]} 18. Nxe4 {[%emt 0:00:21]} Bxe4 {[%emt 0:00:06]} 19. Bd3 {[%emt 0:00:05]} Bxd3 {[%emt 0:01:39]} 20. Rxd3 {[%emt 0:00:08]} Nc5 {[%emt 0:00:22]} 21. Rd6 {[%emt 0:00:30]} b5 {[%emt 0:02:32]} 22. Ba3 {[%emt 0:08:39]} Ne4 {[%emt 0:01:25]} 23. Rd7 {[%emt 0:01:50]} Rfb8 {[%emt 0:04:21]} 24. Re1 {[%emt 0:16:09]} Nc3 {[%emt 0:02:54]} 25. Ne5 {[%emt 0:04:04]} b4 {[%emt 0:02:26]} 26. Bc1 {[%emt 0:00:29]} Nxa2 {[%emt 0:03:28]} 27. Bf4 {[%emt 0:00:57]} Rf8 {[%emt 0:00:45]} 28. c5 {[%emt 0:02:03]} Nc3 {[%emt 0:03:22]} 29. Nc6 {[%emt 0:00:58]} a5 {[%emt 0:02:54]} 30. Ne7+ {[%emt 0:01:08]} Kh8 {[%emt 0:00:19]} 31. c6 {[%emt 0:00:48]} a4 {[%emt 0:02:21]} 32. bxa4 {[%emt 0:00:32]} Nxa4 {[%emt 0:04:07]} 33. Rb7 {[%emt 0:07:05]} Nc5 {[%emt 0:02:18]} 34. Rb1 {[%emt 0:00:08]} b3 {[%emt 0:01:52]} 35. Rb5 {[%emt 0:04:34]} b2 {[%emt 0:01:51]} 36. R5xb2 {[%emt 0:00:05]} Bxb2 {[%emt 0:00:08]} 37. Rxb2 {[%emt 0:00:02]} Nd3 {[%emt 0:00:24]} 38. Bg5 {[%emt 0:00:39]} f6 {[%emt 0:00:47]} 39. Rd2 {[%emt 0:00:42]} fxg5 {[%emt 0:00:09]} 40. Rxd3 {[%emt 0:00:04]} Ra7 {[%emt 0:00:37]} 41. Rd7 {[%emt 0:00:09]} Rxd7 {[%emt 0:00:12]} 42. cxd7 {[%emt 0:00:03]} Rd8 {[%emt 0:00:08]} 43. Nc6 {[%emt 0:00:02]} Rxd7 {[%emt 0:00:06]} 44. Ne5 {[%emt 0:00:02]} Rd5 {[%emt 0:00:25]} 45. Ng4 {[%emt 0:00:05]} Kg7 {[%emt 0:00:37]} 46. Ne3 {[%emt 0:00:17]} Rd2 {[%emt 0:00:37]} 47. Nc4 {[%emt 0:00:15]} Rc2 {[%emt 0:01:05]} 48. Nd6 {[%emt 0:00:35]} Kf6 {[%emt 0:00:20]} 49. g3 {[%emt 0:00:06]} Rc6 {[%emt 0:01:00]} 50. Ne4+ {[%emt 0:00:18]} Kf5 {[%emt 0:00:06]} 51. Nd2 {[%emt 0:00:02]} Rc2 {[%emt 0:00:32]} 52. Nf3 {[%emt 0:00:03]} e5 {[%emt 0:00:11]} 53. Nh2 {[%emt 0:00:55]} h5 {[%emt 0:00:29]} 54. Kg2 {[%emt 0:00:24]} e4 {[%emt 0:01:41]} 55. Nf1 {[%emt 0:01:04]} Re2 {[%emt 0:00:13]} 56. g4+ {[%emt 0:00:11]} Ke5 {[%emt 0:00:49]} 57. gxh5 {[%emt 0:01:52]} gxh5 {[%emt 0:00:04]} 58. Ng3 {[%emt 0:00:06]} Ra2 {[%emt 0:00:08]} 59. Nf1 {[%emt 0:00:04]} Ra3 {[%emt 0:00:48]} 60. Nd2 {[%emt 0:00:50]} Rd3 {[%emt 0:00:10]} 61. Nf1 {[%emt 0:00:35]} Kf4 {[%emt 0:00:09]} 62. Kh2 {[%emt 0:00:16]} Kf3 {[%emt 0:00:29]} 63. Ng3 {[%emt 0:00:08]} Rd2 {[%emt 0:00:14]} 64. Kg1 {[%emt 0:00:11]} e3 {[%emt 0:00:07]} 65. Nf1 {[%emt 0:00:21]} Rxf2 {[%emt 0:00:10]} 66. Nh2+ {[%emt 0:00:11]} Rxh2 {[%emt 0:00:08]} 67. Kxh2 {[%emt 0:00:03]} e2 {[%emt 0:00:06]} 68. h4 {[%emt 0:00:05]} e1=Q {[%emt 0:00:14]} 69. Kh3 {[%emt 0:00:05]} Qxh4# {[%emt 0:00:17]} 0-1